bitfinex/quotes_ETHUSD_20260203
["timestamp","ask_amount","ask_price","bid_price","bid_amount"]
[1770142241239,0.954,2198.7,2197.7,1.14436083]
[1770142241240,12.38502645,2198.5,2197.7,0.00684134]
[1770142241426,12.38502645,2198.4,2197.1,1.13786224]
[1770142241734,12.38502645,2198.4,2197.2,0.00684134]
[1770142241735,1.16947594,2198.3,2197.2,0.00684134]
[1770142241942,1.16947594,2198.2,2197.0,0.00684134]
[1770142242104,0.954,2198.1,2197.0,1.14475234]
[1770142242304,2.12347594,2198.1,2196.9,1.13792716]
[1770142242508,1.16947594,2198.0,2196.8,1.14482846]
[1770142242740,1.13750113,2197.8,2196.9,0.57039143]
[1770142242918,1.13750113,2197.8,2196.6,4.56019157]
[1770142243121,3.75781644,2197.9,2196.9,0.00684134]
[1770142243433,16.14284289,2197.9,2196.8,1.13801744]
[1770142243940,16.14284289,2197.9,2196.7,1.14487454]
[1770142244122,1.16947594,2197.6,2196.6,0.001]
[1770142244322,0.954,2197.5,2196.6,0.001]
[1770142245020,2.09169095,2197.5,2197.0,0.001]
[1770142246246,0.954,2197.5,2197.0,0.001]
[1770142247630,0.954,2197.7,2197.0,0.001]
[1770142248375,0.954,2197.7,2196.6,1.14593026]
[1770142248376,13.88060102,2197.6,2196.6,0.001]
[1770142248520,1.16947594,2197.0,2195.6,0.00684134]
[1770142248723,13.55450239,2196.7,2195.5,0.001]
[1770142249025,1.51195468,2196.6,2195.6,0.00684134]
[1770142249222,0.94504875,2196.5,2195.5,1.14652893]
[1770142249573,1.89843837,2196.4,2195.5,0.00784134]
[1770142249741,0.94443837,2196.3,2195.5,0.001]
[1770142249923,0.94443837,2196.2,2195.5,0.001]
[1770142250124,0.94443837,2196.1,2195.5,0.001]
[1770142250458,1.16947594,2195.9,2195.0,0.001]
[1770142250620,1.16947594,2195.3,2194.8,0.001]
[1770142250829,1.89721648,2195.2,2194.8,0.001]
[1770142251025,0.94321648,2195.1,2194.8,0.001]
[1770142251228,0.954,2195.2,2194.8,0.001]
[1770142251650,1.16947594,2195.7,2194.8,0.001]
[1770142251838,1.89387359,2195.6,2194.8,0.001]
[1770142252050,0.954,2195.6,2194.8,0.001]
[1770142252558,12.3932101,2195.5,2194.8,0.001]
[1770142253063,12.3932101,2195.5,2194.2,1.1471975]
[1770142253362,1.13874464,2195.4,2194.2,1.1471975]
[1770142253664,13.53190358,2195.5,2194.4,0.00684134]
[1770142253985,0.954,2195.4,2194.6,0.00684134]
[1770142254145,0.954,2195.4,2194.8,0.00684134]
[1770142254455,0.954,2195.4,2194.7,0.00684134]
[1770142254833,0.954,2195.4,2194.8,0.00684134]
[1770142255430,0.954,2195.4,2194.9,0.00684134]
[1770142255673,0.955,2195.6,2194.9,0.57843922]
[1770142255854,0.955,2195.6,2195.1,0.00684134]
[1770142256066,0.955,2195.6,2194.9,0.57843922]
[1770142256565,0.98556057,2196.2,2195.1,0.00684134]
[1770142256736,12.97853458,2196.0,2194.3,0.57116537]
[1770142256932,12.97853458,2196.0,2194.4,1.14607575]
[1770142257247,0.1024,2195.7,2194.2,0.00784134]
[1770142257434,12.97853458,2195.2,2194.2,0.001]
[1770142257629,12.97853458,2195.0,2194.0,1.13946958]
[1770142257860,0.955,2194.9,2193.9,1.14733056]
[1770142258053,13.93353458,2194.9,2193.9,0.001]
[1770142258865,12.97853458,2194.7,2193.9,0.001]
[1770142259067,0.1024,2194.8,2192.9,0.00684134]
[1770142259068,12.97853458,2194.4,2192.9,0.00684134]
[1770142259366,1.13941935,2194.1,2192.9,0.00684134]
[1770142259673,12.97853458,2194.2,2193.3,0.00684134]
[1770142259982,2.19672877,2194.3,2194.1,0.001]
[1770142260184,0.67538212,2194.2,2194.1,0.001]
[1770142260759,0.955,2194.2,2193.3,0.001]
[1770142260962,13.93353458,2194.2,2193.3,0.001]
[1770142261360,12.97853458,2194.0,2192.8,1.14006903]
[1770142261541,0.1024,2193.9,2192.8,1.14691037]
[1770142261743,1.13941935,2194.1,2193.1,0.00684134]
[1770142261744,0.1024,2194.1,2193.1,0.00684134]
[1770142261952,0.77781591,2194.1,2193.1,0.00684134]
[1770142262136,0.67541591,2194.1,2193.1,0.00684134]
[1770142262336,2.09438162,2194.2,2193.0,0.00684134]
[1770142262763,0.955,2194.2,2193.3,0.00684134]
[1770142263272,2.44726573,2194.6,2193.7,0.00684134]
[1770142263435,0.955,2194.6,2193.6,0.00684134]
[1770142263635,0.955,2194.6,2193.8,0.00684134]
[1770142263834,0.955,2194.6,2193.6,1.14648443]
[1770142264178,13.93353458,2194.6,2193.3,1.13981158]
[1770142264467,13.93353458,2194.6,2193.4,1.13977952]
[1770142264671,14.37188804,2194.5,2193.5,1.13970404]
[1770142264839,14.37188804,2194.5,2193.3,0.00684134]
[1770142265038,1.39335346,2194.5,2193.7,0.00684134]
[1770142265243,0.955,2194.6,2193.7,0.00684134]
[1770142265638,0.955,2194.6,2193.9,0.00684134]
[1770142265839,0.955,2194.6,2193.8,0.00684134]
[1770142266036,2.09416928,2194.6,2193.5,1.14654937]
[1770142266267,2.09416928,2194.6,2193.4,0.00684134]
[1770142266466,0.6650619,2194.5,2193.5,0.00684134]
[1770142266669,0.6650619,2194.5,2193.5,1.14657081]
[1770142266843,0.6650619,2194.5,2193.5,0.00684134]
[1770142267576,1.80429382,2194.5,2193.5,1.14657162]
[1770142267770,1.13923192,2194.5,2193.5,1.14657162]
[1770142267958,1.13923192,2194.5,2193.5,1.13973028]
[1770142268145,1.13923192,2194.5,2193.6,0.00684134]
[1770142268479,1.13923192,2194.5,2193.4,0.5719738]
[1770142268480,14.1177665,2194.5,2193.4,0.5719738]
[1770142268664,1.96294098,2194.4,2193.2,1.14672273]
[1770142268866,1.96294098,2194.4,2193.3,1.13983152]
[1770142269175,1.96294098,2194.4,2193.2,0.00684134]
[1770142269344,1.13922099,2194.5,2193.5,1.14656957]
[1770142269547,2.09419439,2194.6,2193.6,0.00684134]
[1770142270156,2.09416538,2194.6,2193.5,1.14653933]
[1770142270368,2.09416538,2194.6,2193.1,1.14677066]
[1770142270369,15.07269996,2194.6,2193.1,1.14677066]
[1770142270553,15.07269996,2194.6,2193.0,1.13998907]
[1770142270755,13.08093458,2194.3,2192.7,4.56731403]
[1770142270956,13.08093458,2194.3,2192.9,1.1468749]
[1770142271158,13.08093458,2194.3,2192.7,0.00684134]
[1770142271357,13.08093458,2194.3,2192.7,1.14014155]
[1770142271557,14.117902,2194.2,2192.8,0.00684134]
[1770142271860,1.98017717,2194.1,2192.9,0.00684134]
[1770142272079,0.955,2194.0,2193.5,0.001]
[1770142272643,13.93353458,2194.0,2192.8,0.45810583]
[1770142272879,13.08093458,2193.9,2192.5,0.001]
[1770142273080,13.08093458,2193.7,2192.5,0.001]
[1770142273679,12.97853458,2192.9,2191.7,0.001]
[1770142273861,13.08093458,2192.5,2191.0,1.14100881]
[1770142274067,13.08093458,2192.5,2191.0,1.14098227]
[1770142274263,13.08093458,2192.5,2190.9,1.14105001]
[1770142274584,13.08093458,2192.3,2191.0,1.71225514]
[1770142274779,13.08093458,2192.3,2191.0,0.57807889]
[1770142275086,13.08093458,2192.3,2190.6,12.86402579]
[1770142275087,0.1024,2191.4,2190.2,1.14144428]
[1770142275260,0.1024,2191.4,2190.2,1.14141987]
[1770142275468,13.96191637,2191.4,2189.9,0.00684415]
[1770142275650,14.63932877,2191.3,2190.0,0.00684415]
[1770142275862,0.70479419,2191.3,2190.3,0.00684415]
[1770142276068,0.70479419,2191.3,2190.6,0.00684415]
[1770142276567,0.70479419,2191.3,2190.3,0.00684415]
[1770142276764,0.70479419,2191.3,2190.4,0.00684681]
[1770142276966,0.70479419,2191.3,2190.8,0.00684681]
[1770142277308,0.956,2191.9,2190.7,0.00684681]
[1770142277309,2.09657614,2191.9,2190.7,0.00684681]
[1770142277504,12.97853458,2191.6,2189.8,1.14850358]
[1770142277661,0.1024,2191.2,2189.7,0.13089971]
[1770142277979,0.1024,2191.0,2189.9,1.14159013]
[1770142278381,0.956,2191.1,2190.1,0.0068479]
[1770142278563,0.956,2191.1,2190.2,0.0068479]
[1770142278762,0.956,2191.1,2190.0,0.0068479]
[1770142278990,0.956,2191.1,2190.2,0.0068479]
[1770142279299,0.956,2191.1,2190.4,0.0068479]
[1770142279593,0.956,2191.1,2190.2,0.0068479]
[1770142279894,0.956,2191.1,2190.3,1.14139615]
[1770142280065,0.956,2191.1,2190.4,0.0068479]
[1770142280398,1.54851166,2192.4,2191.5,0.0068479]
[1770142280399,0.49767494,2192.3,2191.5,0.0068479]
[1770142280695,0.49767494,2192.3,2191.7,0.0068479]
[1770142280891,15.07423848,2193.1,2191.8,0.0068479]
[1770142281096,12.97826653,2193.6,2192.5,0.0068479]
[1770142281394,14.11797288,2193.6,2192.2,0.0068479]
[1770142281693,0.31686788,2193.7,2192.6,0.0068479]
[1770142281863,0.31686788,2193.7,2192.4,1.14030286]
[1770142282064,1.45649949,2193.7,2192.5,0.57083622]
[1770142282366,14.43476602,2193.7,2192.3,1.14034417]
[1770142282582,14.43476602,2193.7,2192.0,0.0068479]
[1770142282775,14.43476602,2193.7,2192.1,0.0068479]
[1770142282980,14.43476602,2193.7,2192.1,0.57232649]
[1770142282981,14.87759398,2193.6,2192.1,0.57232649]
[1770142283290,14.87759398,2193.6,2192.5,0.0068479]
[1770142283291,0.956,2193.5,2192.5,0.0068479]
[1770142283499,0.956,2193.5,2192.3,1.14719148]
[1770142283702,2.09576698,2193.5,2192.2,4.56141951]
[1770142283881,0.956,2193.5,2192.4,1.14030096]
[1770142284387,0.956,2193.5,2192.6,0.0068479]
[1770142284724,0.956,2193.5,2192.3,0.45614195]
[1770142284725,2.09573115,2193.5,2192.3,0.45614195]
[1770142285020,2.09574419,2193.5,2192.3,1.1403299]
[1770142285219,0.0011,2193.3,2192.2,0.0068479]
[1770142285375,0.0011,2193.3,2192.2,1.14724407]
[1770142285574,0.0011,2193.3,2192.3,1.14034374]
[1770142285799,0.0011,2193.3,2192.2,4.56845918]
[1770142286000,0.0011,2193.3,2192.1,0.0068479]
[1770142286001,0.0011,2193.3,2192.3,0.45753071]
[1770142286200,0.0011,2193.3,2192.4,0.0068479]
[1770142286510,0.0011,2193.3,2192.7,0.0068479]
[1770142286677,0.0011,2193.5,2192.9,0.0068479]
[1770142286871,0.0011,2193.5,2193.0,0.0068479]
[1770142287380,0.0011,2193.5,2192.6,0.0068479]
[1770142287784,0.0011,2193.5,2192.3,1.14716269]
[1770142287981,0.6027399,2193.5,2192.4,2.90530474]
[1770142288183,0.6027399,2193.5,2192.5,0.0068479]
[1770142288385,0.6027399,2193.5,2192.4,1.14030076]
[1770142288993,0.6027399,2193.5,2192.3,0.0068479]
[1770142289196,0.6027399,2193.5,2192.1,1.14042208]
[1770142289197,14.53700643,2193.5,2192.1,1.14042208]
[1770142289397,14.53700643,2193.5,2191.7,16.43554079]
[1770142289398,12.97826653,2193.2,2191.4,0.0068479]
[1770142289592,12.97826653,2192.9,2191.2,0.0068479]
[1770142289791,1.14025085,2192.5,2191.2,1.14092734]
[1770142289995,1.14025085,2192.5,2191.0,1.14099485]
[1770142289996,14.11851738,2192.5,2191.0,1.14099485]
[1770142290279,0.58036543,2192.4,2191.2,0.0068479]
[1770142290692,13.55863196,2192.4,2190.8,0.0068479]
[1770142290891,13.08066653,2192.3,2190.7,1.14116978]
[1770142291104,14.34436973,2192.2,2190.8,0.0068479]
[1770142291319,0.58036543,2192.4,2190.8,0.0068479]
[1770142291320,13.93426653,2192.1,2190.8,0.0068479]
[1770142291529,13.93426653,2192.1,2190.5,0.001]
[1770142291693,13.08066653,2191.8,2190.5,0.001]
[1770142291887,14.11893359,2191.7,2190.5,0.001]
[1770142292208,1.87840018,2191.6,2190.5,0.001]
[1770142292587,0.956,2192.2,2191.1,0.0068479]
[1770142292787,0.956,2192.2,2191.3,0.0068479]
[1770142293014,0.956,2192.2,2191.2,0.0068479]
[1770142293189,17.53902613,2192.7,2191.5,0.0068479]
[1770142293389,2.89410146,2192.6,2191.5,0.0068479]
[1770142293590,15.87236799,2192.6,2191.1,0.0068479]
[1770142293790,15.87236799,2192.6,2191.3,1.14087527]
[1770142293984,15.87236799,2192.6,2191.2,1.14773527]
[1770142294299,15.87236799,2192.6,2191.3,0.0068479]
[1770142294500,2.13891276,2192.5,2191.3,0.57937199]
[1770142294699,2.89412317,2192.6,2191.7,0.0068479]
[1770142294898,1.14022056,2192.6,2191.4,0.0068479]
[1770142295106,1.14022056,2192.6,2191.3,0.57252409]
[1770142295479,1.14022056,2192.6,2191.3,0.57937199]
[1770142295686,1.14022056,2192.6,2191.6,0.0068479]
[1770142295922,1.80590474,2192.6,2191.6,0.0068479]
[1770142296083,1.80590474,2192.6,2191.4,0.0068479]
[1770142296284,1.80590474,2192.6,2191.5,0.0068479]
[1770142296587,0.5161492,2193.4,2192.1,0.0068479]
[1770142296802,1.17057594,2193.5,2192.1,0.0068479]
[1770142296803,0.0011,2193.5,2192.8,0.0068479]
[1770142297010,0.0011,2193.5,2192.7,0.0068479]
[1770142297209,0.0011,2193.5,2191.2,4.56287643]
[1770142297510,1.14083961,2193.5,2192.4,0.0068479]
[1770142297715,1.74168158,2193.5,2192.5,0.0068479]
[1770142298094,0.0011,2193.0,2192.5,0.0068479]
[1770142298306,0.0011,2193.0,2192.4,0.0068479]
[1770142298494,0.0011,2193.5,2192.9,0.0068479]
[1770142298699,0.0011,2193.5,2193.0,0.0068479]
[1770142299314,0.0011,2193.5,2192.7,0.0068479]
[1770142299517,0.0011,2193.5,2193.0,0.0068479]
[1770142299721,1.14083931,2193.5,2191.5,0.0068479]
[1770142299937,1.14083931,2193.5,2192.2,0.0068479]
[1770142300114,1.14083931,2193.5,2191.9,0.0068479]
[1770142300427,1.14083931,2193.5,2192.2,0.0068479]
[1770142301099,14.11910584,2193.5,2191.8,1.14746291]
[1770142301319,1.89870486,2193.4,2191.9,0.57169106]
[1770142301629,14.87697139,2193.4,2191.8,0.0068479]
[1770142301923,1.13983495,2193.3,2192.1,0.0068479]
[1770142302151,0.956,2193.2,2191.9,1.14053857]
[1770142302294,0.956,2193.2,2191.9,0.0068479]
[1770142302494,0.956,2193.2,2191.9,1.1474063]
[1770142302720,0.956,2193.2,2191.9,1.71976153]
[1770142303016,13.93426653,2193.2,2191.9,0.57235523]
[1770142303229,12.97826653,2192.7,2191.3,0.57252409]
[1770142303393,12.97826653,2192.7,2191.2,0.0068479]
[1770142303725,1.30806665,2192.6,2191.4,1.14766732]
[1770142303925,1.14009485,2192.8,2191.5,1.14758482]
[1770142304124,1.14009485,2192.8,2191.5,0.0068479]
[1770142304303,14.11836138,2192.8,2191.1,0.0068479]
[1770142304619,14.11836138,2192.8,2191.3,1.14087266]
[1770142304834,14.11836138,2192.8,2191.2,1.14773902]
[1770142305123,14.84614061,2192.7,2191.3,1.71271135]
[1770142305446,14.84614061,2192.7,2190.9,4.57116752]
[1770142305447,12.97826653,2192.2,2190.9,0.0068479]
[1770142305742,1.56504444,2192.5,2190.5,0.001]
[1770142305743,12.97826653,2192.0,2190.5,0.001]
[1770142305906,1.14056298,2191.9,2190.6,1.14123984]
[1770142306106,1.86810814,2191.8,2190.5,0.001]
[1770142306315,14.84637467,2191.8,2190.5,0.001]
[1770142306909,14.84637467,2191.8,2190.5,0.0078479]
[1770142307114,14.84637467,2191.8,2190.5,0.001]
[1770142307313,1.59869377,2191.7,2190.5,0.57256256]
[1770142307514,1.59869377,2191.7,2190.5,0.001]
[1770142307805,1.59869377,2191.7,2190.5,1.14226827]
[1770142308004,1.59869377,2191.7,2190.7,0.0068479]
[1770142308206,1.14065178,2191.8,2190.7,0.0068479]
[1770142308608,1.14065178,2191.8,2190.5,1.14909528]
[1770142309036,1.14065178,2191.8,2190.6,0.0068479]
[1770142310115,0.956,2191.9,2190.7,0.0068479]
[1770142310306,0.956,2191.9,2191.0,0.0068479]
[1770142310507,2.09657389,2191.9,2190.8,0.001]
[1770142310734,0.956,2191.9,2190.8,0.001]
[1770142310905,12.38362232,2192.3,2191.1,0.0068479]
[1770142311116,2.31130983,2192.2,2191.2,0.0068479]
[1770142311320,0.956,2192.2,2191.2,0.0068479]
[1770142311934,0.956,2192.2,2191.3,0.0068479]
[1770142312146,0.956,2192.2,2191.3,1.14769397]
[1770142312308,2.09641505,2192.2,2190.8,0.001]
[1770142312506,0.0068479,2191.2,2190.8,0.001]
[1770142312918,0.0068479,2191.4,2190.8,0.001]
[1770142313243,0.9638479,2191.5,2190.8,0.001]
[1770142313457,0.0068479,2191.4,2190.8,0.001]
[1770142313864,0.0068479,2191.3,2190.8,0.001]
[1770142314048,1.14103149,2191.0,2190.5,0.001]
[1770142314255,0.0068479,2191.2,2190.5,0.001]
[1770142314256,4.57043648,2191.3,2190.5,0.001]
[1770142314453,1.77574758,2191.2,2190.5,0.001]
[1770142314835,1.78259548,2191.2,2190.5,0.001]
[1770142315236,0.0068479,2191.1,2190.3,0.001]
[1770142315571,0.0068479,2190.4,2189.7,0.1250529]
[1770142315785,0.0068479,2190.4,2188.7,0.23787317]
[1770142315786,0.0068479,2190.0,2188.9,1.1420824]
[1770142315940,0.957,2190.3,2189.1,4.56806855]
[1770142316132,2.09839699,2190.3,2188.9,4.56830237]
[1770142316349,0.96385025,2190.3,2188.9,5.86396495]
[1770142316551,2.10525146,2190.3,2188.9,5.86396495]
[1770142316860,0.00685025,2190.2,2188.9,2.43778876]
[1770142317179,0.00685025,2189.8,2188.6,1.1422477]
[1770142317365,0.00685072,2189.3,2188.2,1.14248]
[1770142317563,1.16947594,2190.1,2188.8,1.14216786]
[1770142317768,0.957,2190.0,2188.8,1.14216786]
[1770142318147,0.00685119,2189.9,2188.2,17.52638683]
[1770142318342,0.00685119,2189.8,2188.2,17.52638683]
[1770142318666,0.00685119,2188.3,2187.9,1.31951101]
[1770142318871,0.00685119,2188.5,2186.9,1.14311842]
[1770142319069,0.957,2188.4,2187.0,5.14386431]
[1770142319269,0.957,2188.4,2187.1,0.00685651]
[1770142319566,0.73800487,2188.7,2187.3,0.00685651]
[1770142319733,0.73800487,2188.7,2187.1,0.00685651]
[1770142320065,0.73800487,2188.7,2187.7,4.57765822]
[1770142320241,0.59159681,2188.7,2188.0,0.00685651]
[1770142320442,0.957,2189.6,2188.2,0.00685651]
[1770142320769,0.31834147,2189.9,2188.1,12.96348233]
[1770142320932,0.00685651,2189.2,2187.8,1.14270042]
[1770142321132,0.00685651,2189.2,2187.9,0.57135021]
[1770142321362,0.00685651,2189.0,2187.9,0.57135021]
[1770142321562,0.00685651,2189.0,2187.9,0.55954051]
[1770142321765,0.31148496,2189.9,2187.9,13.51616633]
[1770142321970,0.31148496,2189.9,2188.4,12.95662582]
[1770142322186,0.31148496,2189.9,2188.6,14.09890855]
[1770142322467,0.00685651,2189.8,2188.6,1.14228273]
[1770142322643,0.00685651,2189.5,2188.6,1.14228273]
[1770142322847,0.00685651,2189.5,2188.1,12.95662582]
[1770142323050,0.31148496,2189.9,2188.5,1.14233193]
[1770142323472,0.00685651,2189.6,2188.5,1.14233193]
[1770142323672,0.00685651,2189.6,2188.2,2.53381514]
[1770142323838,0.00685651,2189.2,2187.9,1.14259784]
[1770142324043,1.142074,2189.0,2187.1,6.59432562]
[1770142324250,1.14204763,2189.1,2187.3,0.00685651]
[1770142324566,0.00685651,2189.2,2187.3,0.00685651]
[1770142324779,1.87263425,2189.2,2187.6,0.00685651]
[1770142324940,1.87263425,2189.2,2187.4,12.95662582]
[1770142325143,1.87949076,2189.2,2187.4,12.95662582]
[1770142325351,1.87949076,2189.2,2187.4,12.96348233]
[1770142325567,0.39852704,2189.1,2188.0,0.001]
[1770142325754,1.87263425,2189.2,2188.0,0.001]
[1770142326473,0.957,2189.3,2188.0,0.001]
[1770142326677,0.31148496,2189.9,2188.4,0.00685651]
[1770142326973,0.31148496,2189.9,2188.5,0.00685651]
[1770142327185,1.45309502,2189.9,2188.1,0.00685651]
[1770142327345,1.45309502,2189.9,2188.3,0.00685651]
[1770142327546,2.05570827,2189.9,2188.3,0.00685651]
[1770142328154,2.05570827,2189.9,2188.4,1.14238713]
[1770142328680,0.91409308,2189.9,2188.4,1.14238713]
[1770142328885,0.31148496,2189.9,2188.4,14.10586946]
[1770142329187,1.14113565,2190.8,2189.7,0.00685651]
[1770142329390,1.14113565,2190.8,2189.6,0.00685651]
[1770142329594,1.14113565,2190.8,2189.8,0.00685651]
[1770142329754,1.77449944,2190.7,2190.0,0.00685651]
[1770142329953,1.59298799,2191.1,2190.0,0.00685651]
[1770142330156,2.73397095,2191.1,2189.9,1.14157555]
[1770142330380,1.59298799,2191.1,2190.1,1.14146844]
[1770142330578,1.59298799,2191.1,2190.1,1.14832495]
[1770142330791,1.59298799,2191.1,2190.2,1.14144598]
[1770142330956,1.59298799,2191.1,2190.2,0.57896363]
[1770142330957,2.09799867,2191.1,2190.2,0.57896363]
[1770142331155,2.09799867,2191.1,2190.2,1.14141818]
[1770142331156,0.957,2191.1,2190.2,1.14141818]
[1770142331511,0.957,2191.1,2190.4,0.00685651]
[1770142331660,2.09798965,2191.1,2190.0,0.00685651]
[1770142331859,2.09798965,2191.1,2189.9,0.00685651]
[1770142332098,1.80724117,2191.0,2189.9,1.60715872]
[1770142332257,1.80724117,2191.0,2189.8,1.14164451]
[1770142332258,1.80722046,2191.0,2189.8,1.14164451]
[1770142332459,0.66618258,2191.0,2190.1,0.00685651]
[1770142332691,0.957,2191.1,2190.2,0.00685651]
[1770142332860,2.09799392,2191.1,2189.9,0.00685651]
[1770142333187,12.14171614,2191.0,2189.3,1.14189035]
[1770142333366,2.09799392,2191.1,2189.9,1.14158914]
[1770142333576,0.66619116,2191.0,2190.1,0.00685651]
[1770142333883,0.66619116,2191.0,2189.9,0.57835203]
[1770142334093,0.66619116,2191.0,2189.9,0.00685651]
[1770142334305,1.14108357,2190.9,2189.9,0.00685651]
[1770142334457,1.14108357,2190.9,2189.9,1.14845164]
[1770142334658,1.14105279,2191.0,2190.0,0.00685651]
[1770142336083,2.09801459,2191.1,2190.0,0.00685651]
[1770142336285,1.50910646,2191.1,2190.1,1.14831492]
[1770142336483,2.65010299,2191.1,2190.2,0.00685651]
[1770142336667,2.65010299,2191.1,2190.1,0.00685651]
[1770142337071,2.65010299,2191.1,2190.0,1.14840872]
[1770142337279,0.72138154,2191.0,2190.0,1.14840872]
[1770142337492,0.72138154,2191.0,2190.0,0.00685651]
[1770142337661,0.1024,2190.9,2188.9,12.96348233]
[1770142337992,12.76069768,2191.0,2189.7,1.14169308]
[1770142338196,12.76069768,2191.0,2189.6,1.14857661]
[1770142338366,1.14113565,2190.8,2189.6,0.9098113]
[1770142338703,1.14113565,2190.8,2189.2,4.574726]
[1770142338704,12.14171614,2190.5,2188.7,1.14220098]
[1770142338990,12.14171614,2190.5,2189.0,0.00685651]
[1770142339169,1.21417161,2190.4,2189.0,0.00685651]
[1770142339380,13.25348775,2190.4,2188.9,0.00685651]
[1770142339568,13.25348775,2190.4,2189.0,0.00685651]
[1770142339766,1.21417161,2190.4,2189.2,0.00685651]
[1770142340027,12.14171614,2190.6,2189.2,0.00685651]
[1770142340308,13.18086865,2190.0,2188.1,14.09916676]
[1770142340494,13.18086865,2190.0,2188.0,0.001]
[1770142340495,11.82535984,2189.5,2188.0,0.001]
[1770142340698,1.19277598,2189.4,2188.2,0.00685651]
[1770142340998,1.19277598,2189.4,2188.0,0.00785651]
[1770142341203,11.92775984,2189.3,2188.0,0.001]
[1770142341408,0.1024,2189.1,2188.0,0.001]
[1770142341609,11.92775984,2188.9,2187.2,1.14985638]
[1770142341776,11.92775984,2188.9,2187.4,0.00685651]
[1770142341964,11.92775984,2188.9,2187.7,0.00685651]
[1770142342166,11.82535984,2188.9,2187.7,0.00685651]
[1770142342398,1.14217836,2188.8,2187.6,0.00685651]
[1770142342614,1.75362517,2188.7,2187.7,0.00685651]
[1770142342777,1.40543406,2189.1,2188.2,0.00685651]
[1770142342981,1.142074,2189.0,2187.8,0.00685651]
[1770142343195,1.142074,2189.0,2187.5,0.00685651]
[1770142343515,12.96743384,2189.0,2187.5,0.00685651]
[1770142343717,12.96743384,2189.0,2187.4,0.00685651]
[1770142343932,11.82535984,2188.6,2187.1,0.00685651]
[1770142344216,11.82535984,2188.5,2186.8,1.14321774]
[1770142344418,1.14238713,2188.4,2187.3,0.00685651]
[1770142344626,2.21066688,2188.4,2187.5,0.00685651]
[1770142344793,0.958,2188.4,2187.4,0.00685651]
[1770142345121,0.958,2188.4,2187.6,0.00685651]
[1770142345417,0.958,2188.4,2187.3,0.00685651]
[1770142345581,0.958,2188.4,2187.0,0.00685651]
[1770142345776,0.958,2188.4,2187.1,0.00685651]
[1770142346004,0.958,2188.4,2187.0,0.00685651]
[1770142346215,0.958,2188.4,2187.1,0.00685651]
[1770142346417,1.14243933,2188.3,2187.2,0.00685651]
[1770142346617,5.52775734,2188.4,2187.2,0.00685651]
[1770142346618,1.14242365,2188.4,2187.4,0.00685651]
[1770142346783,2.10039854,2188.4,2187.6,0.00685651]
[1770142346983,2.10039854,2188.4,2187.5,0.00685651]
[1770142347183,2.76737245,2188.4,2187.5,0.00685651]
[1770142347384,2.76737245,2188.4,2187.3,0.00685651]
[1770142347606,2.76737245,2188.4,2187.4,0.00685651]
[1770142347900,0.958,2188.4,2187.6,0.00685651]
[1770142348100,0.958,2188.4,2187.7,0.00685651]
[1770142348319,3.10839287,2188.9,2187.9,0.00685651]
[1770142348517,1.19277598,2189.4,2188.5,0.00685651]
[1770142348701,4.56641855,2190.0,2188.6,0.00685651]
[1770142348904,0.958,2189.9,2188.6,0.00685651]
[1770142349097,1.14152169,2190.1,2189.1,0.00685651]
[1770142349296,2.09952169,2190.1,2189.1,0.00685651]
[1770142349501,2.09952169,2190.1,2188.9,0.00685651]
[1770142349695,2.09952169,2190.1,2189.1,0.00685651]
[1770142349907,2.09952169,2190.1,2189.2,0.00685651]
[1770142350292,13.92488153,2190.1,2188.2,1.1493149]
[1770142350489,11.92775984,2189.9,2188.3,0.00685651]
[1770142350787,11.92775984,2189.9,2187.3,0.00685651]
[1770142350788,11.92775984,2189.0,2187.3,0.00685651]
[1770142350983,11.92775984,2189.0,2187.2,0.00685651]
[1770142350984,12.78335984,2188.9,2187.2,0.00685651]
[1770142351488,11.92775984,2188.8,2187.0,1.14997183]
[1770142351688,11.92775984,2188.8,2186.9,0.00685651]
[1770142351886,11.92775984,2188.2,2186.7,0.61333553]
[1770142352116,0.958,2188.1,2186.6,0.00685651]
[1770142352318,12.96795581,2188.0,2186.4,0.00685651]
[1770142352526,12.96795581,2188.0,2186.6,0.00685729]
[1770142352696,1.84963397,2187.9,2186.5,0.00685729]
[1770142353221,1.84963397,2187.9,2186.6,0.00685808]
[1770142353393,1.84963397,2187.9,2186.9,0.00685808]
[1770142353592,1.14259597,2188.0,2186.9,0.00685808]
[1770142354112,1.14259597,2188.0,2187.4,0.001]
[1770142354428,12.96774697,2188.5,2187.4,0.001]
[1770142354585,0.958,2188.3,2187.4,0.001]
[1770142355096,0.958,2188.3,2187.1,0.001]
[1770142355097,12.05893014,2188.1,2187.1,0.001]
[1770142355319,11.82535984,2187.9,2186.3,0.00685808]
[1770142355506,11.82535984,2187.9,2186.2,1.1503641]
[1770142355687,11.82535984,2187.9,2186.3,1.15033763]
[1770142355894,0.1024,2188.2,2186.6,0.00685808]
[1770142356210,13.69735379,2188.2,2186.6,0.00685808]
[1770142356411,1.14254375,2188.1,2186.8,0.00685808]
[1770142356818,11.92775984,2188.0,2186.7,0.00685808]
[1770142357022,11.92775984,2187.6,2185.6,1.15067347]
[1770142357319,11.92775984,2187.6,2185.1,0.00685808]
[1770142357320,11.92775984,2186.9,2185.1,0.00685808]
[1770142357519,0.1024,2186.7,2185.1,0.00685808]
[1770142357712,0.1024,2187.2,2185.9,1.14368129]
[1770142357910,0.958,2187.1,2185.8,0.00685808]
[1770142358289,0.958,2187.1,2185.6,0.00686043]
[1770142358494,1.14311842,2187.0,2185.3,1.14398325]
[1770142358697,0.1024,2186.7,2185.3,0.00686043]
[1770142358898,0.1024,2186.7,2185.2,0.1240529]
[1770142358899,11.92775984,2186.7,2185.2,0.1240529]
[1770142359436,11.92775984,2186.6,2185.2,0.1240529]
[1770142359742,1.19277598,2186.5,2185.2,0.1240529]
[1770142359917,0.1024,2186.3,2185.2,0.0740529]
[1770142360450,1.14353673,2186.2,2185.2,0.0740529]
[1770142362427,4.57414692,2186.3,2185.2,0.0740529]
[1770142362739,0.66756313,2186.2,2185.2,0.0740529]
[1770142364509,1.81111664,2186.2,2185.2,0.0740529]
[1770142365616,0.66756313,2186.2,2185.2,1.21811047]
[1770142365909,11.82535984,2187.1,2185.6,0.00686278]
[1770142366122,2.10211842,2187.0,2185.7,0.00686278]
[1770142366428,2.10211842,2187.0,2185.6,0.00686278]
[1770142366611,2.10211842,2187.0,2185.6,1.1506725]
[1770142366803,1.84998651,2186.9,2185.7,0.57329879]
[1770142367007,1.84998651,2186.9,2186.0,0.001]
[1770142367732,13.67534635,2186.9,2186.0,0.001]
[1770142368505,12.96858281,2186.8,2186.0,0.001]